bitfinex/quotes_ETHUSD_20240928
["timestamp","ask_amount","ask_price","bid_price","bid_amount"]
[1727552118481,3.7237,2685.5,2685.0,6.27503077]
[1727552120269,4.53945,2685.6,2685.0,6.27503077]
[1727552120606,8.26311,2685.6,2685.0,6.27503077]
[1727552121810,8.26309,2685.6,2685.0,9.99934077]
[1727552122180,8.26309,2685.6,2685.0,6.27502077]
[1727552122386,8.26309,2685.6,2685.0,9.99934077]
[1727552122587,8.26309,2685.6,2685.0,6.27502077]
[1727552123202,3.7238,2685.5,2685.0,6.27502077]
[1727552123415,4.53944,2685.6,2685.0,6.27502077]
[1727552123727,3.72371,2685.5,2685.0,6.27502077]
[1727552125107,4.53944,2685.6,2685.0,6.27502077]
[1727552125311,4.53944,2685.6,2685.1,4.48725]
[1727552126210,8.26308,2685.6,2685.1,4.48725]
[1727552126719,3.72391,2685.4,2685.1,0.763]
[1727552127016,3.72373,2685.5,2685.1,0.763]
[1727552141031,3.72373,2685.5,2684.9,1.55752797]
[1727552141032,4.5351,2685.4,2684.9,3.72448]
[1727552141666,0.8112,2685.4,2685.0,3.72435]
[1727552141845,0.8112,2685.4,2685.0,4.92654352]
[1727552143874,0.8112,2685.4,2685.0,1.20219352]
[1727552144048,4.53504,2685.4,2685.0,1.20219352]
[1727552144575,3.7237,2685.5,2685.1,0.7527]
[1727552145153,3.72387,2685.4,2684.9,0.7527]
[1727552145357,3.72405,2685.3,2684.9,0.7527]
[1727552145983,3.72451,2685.0,2684.7,0.7527]
[1727552147801,4.53553,2685.1,2684.7,0.7527]
[1727552153388,3.72442,2685.0,2684.7,0.7527]
[1727552153587,0.825995,2684.9,2684.5,0.7937]
[1727552153844,3.72501,2684.6,2684.1,4.51926]
[1727552153988,3.72514,2684.5,2684.1,0.7937]
[1727552154187,9.40717969,2684.6,2684.1,0.7937]
[1727552154429,3.72509,2684.5,2684.1,0.7937]
[1727552154785,4.90406077,2684.6,2684.1,0.7937]
[1727552155620,8.62909077,2684.6,2684.1,0.7937]
[1727552156326,4.90406077,2684.6,2684.1,0.7937]
[1727552156626,8.62910077,2684.6,2684.1,0.7937]
[1727552157902,3.72508,2684.5,2684.1,0.7937]
[1727552160910,3.72529,2684.4,2684.1,0.7937]
[1727552161831,3.67529,2684.4,2684.1,0.7937]
[1727552161999,3.7254,2684.3,2684.1,0.7937]
[1727552162206,3.67529,2684.4,2684.1,0.7937]
[1727552162528,7.40062,2684.4,2684.1,0.7937]
[1727552163417,3.67529,2684.4,2684.1,0.7937]
[1727552166527,3.67529,2684.4,2684.1,1.245653]
[1727552175059,0.8258,2684.7,2684.4,0.821]
[1727552175060,3.72481,2684.7,2684.4,0.821]
[1727552175253,7.44956,2684.8,2684.4,0.821]
[1727552175435,3.72476,2684.8,2684.4,0.821]
[1727552175607,3.72476,2684.8,2684.4,1.4313868]
[1727552176758,7.44952,2684.8,2684.4,1.4313868]
[1727552177124,3.72476,2684.8,2684.4,1.4313868]
[1727552178253,7.44954,2684.8,2684.4,1.4313868]
[1727552178856,3.72476,2684.8,2684.4,1.4313868]
[1727552179023,3.72484,2684.7,2684.4,0.821]
[1727552188544,3.72476,2684.8,2684.4,0.821]
[1727552189157,7.44955,2684.8,2684.4,0.821]
[1727552190406,3.72482,2684.7,2684.4,0.821]
[1727552198494,3.72454,2684.9,2684.4,0.821]
[1727552198701,3.72468,2684.8,2684.4,1.4313878]
[1727552199172,3.72481,2684.7,2684.4,1.4313878]
[1727552201599,3.72454,2684.9,2684.4,1.4313878]
[1727552201763,3.72468,2684.8,2684.4,1.4313878]
[1727552202278,7.44918,2684.9,2684.4,1.4313878]
[1727552202716,3.7247,2684.8,2684.4,1.4313878]
[1727552212984,3.72483,2684.7,2684.4,1.4313878]
[1727552213285,3.72483,2684.7,2684.4,0.821]
[1727552214483,5.6815916,2684.9,2684.4,0.821]
[1727552214675,3.72454,2684.9,2684.4,4.54621]
[1727552214861,5.6815916,2684.9,2684.5,0.9829098]
[1727552215274,3.72454,2684.9,2684.5,0.9829098]
[1727552215604,3.72454,2684.9,2684.6,0.799]
[1727552215605,5.6815916,2684.9,2684.6,0.799]
[1727552216078,3.72454,2684.9,2684.6,0.799]
[1727552216268,5.6815916,2684.9,2684.6,0.799]
[1727552218218,3.72474,2684.8,2684.4,0.799]
[1727552218416,1.9570516,2684.9,2684.4,5.0524178]
[1727552219467,5.6816016,2684.9,2684.4,5.0524178]
[1727552220286,5.68279374,2684.9,2684.4,5.0524178]
[1727552222305,1.95824374,2684.8,2684.4,5.0524178]
[1727552222504,5.68331039,2684.9,2684.5,0.87776678]
[1727552222870,5.68331039,2684.9,2684.4,5.0524178]
[1727552226223,5.68331039,2684.9,2684.5,0.7505]
[1727552227525,5.68316311,2684.9,2684.5,0.7505]
[1727552230351,5.68316311,2684.9,2684.5,4.47557]
[1727552230699,1.95861311,2684.9,2684.6,0.7505]
[1727552230920,1.95861311,2684.9,2684.6,4.47536]
[1727552231121,1.95861311,2684.9,2684.6,0.7505]
[1727552232327,1.95853118,2684.9,2684.6,0.7505]
[1727552242076,1.95860612,2684.9,2684.6,0.7505]
[1727552243044,5.68321612,2684.9,2684.6,0.7505]
[1727552244495,5.68321612,2684.9,2684.3,4.55266]
[1727552244654,3.72483,2684.7,2684.3,4.55266]
[1727552245056,3.72467,2684.8,2684.3,4.55266]
[1727552245356,5.68321612,2684.9,2684.3,4.55266]
[1727552245755,3.72469,2684.8,2684.3,4.55266]
[1727552246551,9.40806612,2684.8,2684.3,4.55266]
[1727552246752,7.44944,2684.8,2684.3,4.55266]
[1727552246961,5.68347157,2684.8,2684.3,4.55266]
[1727552247569,3.72469,2684.8,2684.3,4.55266]
[1727552247819,5.68347157,2684.8,2684.3,5.24193684]
[1727552248562,5.68347157,2684.8,2684.4,3.72521]
[1727552249655,5.68347157,2684.8,2684.3,5.24193684]
[1727552251698,5.68358491,2684.8,2684.3,5.24193684]
[1727552253585,5.68358491,2684.8,2684.3,8.96723684]
[1727552256597,5.68349093,2684.8,2684.3,8.96723684]
[1727552257564,5.68349093,2684.8,2684.3,4.55266]
[1727552258367,5.68349093,2684.8,2684.3,8.27795]
[1727552258982,5.68349093,2684.8,2684.3,4.55266]
[1727552259505,5.68349093,2684.8,2684.3,8.27795]
[1727552261407,5.68343076,2684.8,2684.3,8.27795]
[1727552262484,5.68343076,2684.8,2684.4,3.72522]
[1727552264594,1.95874076,2684.8,2684.4,3.72522]
[1727552265100,1.95874076,2684.8,2684.3,5.13107276]
[1727552265345,5.68343076,2684.8,2684.3,5.13107276]
[1727552265671,5.68343076,2684.8,2684.3,8.85632276]
[1727552266106,5.68343076,2684.8,2684.4,3.72519]
[1727552266272,5.68326475,2684.8,2684.4,3.72519]
[1727552266915,5.68326475,2684.8,2684.3,5.13106276]
[1727552267118,5.68326475,2684.8,2684.3,8.85633276]
[1727552267918,5.68326475,2684.8,2684.4,3.72522]
[1727552268786,5.68326475,2684.8,2684.3,5.13106276]
[1727552269719,5.68326475,2684.8,2684.3,8.85634276]
[1727552270623,5.68326475,2684.8,2684.3,5.13106276]
[1727552271115,5.68316973,2684.8,2684.3,8.85634276]
[1727552271518,5.68316973,2684.8,2684.3,5.13106276]
[1727552271727,1.95847973,2684.8,2684.4,3.7252]
[1727552273488,1.95847973,2684.8,2684.3,5.13106276]
[1727552273684,5.68314973,2684.8,2684.3,8.85635276]
[1727552274125,5.68314973,2684.8,2684.4,3.7252]
[1727552276130,1.95846189,2684.8,2684.4,3.7252]
[1727552280409,3.72458,2684.9,2684.4,3.7252]
[1727552280607,1.95857282,2684.8,2684.4,3.7252]
[1727552284528,1.95873115,2684.8,2684.4,3.7252]
[1727552289433,1.95899791,2684.8,2684.4,3.7252]
[1727552289912,5.68368791,2684.8,2684.3,5.13109276]
[1727552290312,6.47128791,2684.8,2684.3,5.13109276]
[1727552290722,1.95899791,2684.7,2684.3,5.13109276]
[1727552291440,1.95899791,2684.7,2684.4,3.72519]
[1727552294325,1.95918155,2684.7,2684.4,3.72519]
[1727552299072,1.95949076,2684.7,2684.4,3.72519]
[1727552300539,1.95949076,2684.7,2684.3,5.13113276]
[1727552301174,1.95949076,2684.7,2684.4,3.72521]
[1727552305483,1.95949076,2684.7,2684.4,4.61086028]
[1727552308845,1.95962087,2684.7,2684.4,4.61086028]
[1727552313798,1.95962454,2684.7,2684.4,4.61086028]
[1727552319317,1.95962454,2684.7,2684.4,3.72521]
[1727552322572,1.95962454,2684.7,2684.3,0.8274]
[1727552322999,3.72543,2684.3,2683.9,1.61528042]
[1727552323212,3.72571,2684.1,2683.7,0.8327]
[1727552323588,6.44509965,2684.2,2683.7,0.8327]
[1727552323785,3.72572,2684.1,2683.7,0.8327]
[1727552323998,6.44509965,2684.2,2683.7,0.8327]
[1727552324200,4.48598,2684.2,2683.8,3.72605]
[1727552326893,0.7604,2684.2,2683.8,3.72605]
[1727552327104,0.7604,2684.2,2683.8,4.7103008]
[1727552332029,3.72551,2684.2,2683.8,0.9842508]
[1727552332227,3.72551,2684.2,2683.7,4.55887]
[1727552340598,4.51474,2684.1,2683.7,0.8327]
[1727552344910,0.789,2684.1,2683.7,0.8327]
[1727552345910,4.51467,2684.1,2683.7,0.8327]
[1727552346417,3.72578,2684.0,2683.7,0.8327]
[1727552347249,4.51466,2684.1,2683.7,0.8327]
[1727552348121,0.789,2684.1,2683.7,4.55889]
[1727552352349,3.72551,2684.2,2683.7,8.28502]
[1727552353326,3.72551,2684.2,2683.7,4.55883]
[1727552354362,3.72551,2684.2,2683.7,8.28496]
[1727552354565,3.72551,2684.2,2683.7,4.55883]
[1727552355223,3.72551,2684.2,2683.8,3.72604]
[1727552355423,3.72551,2684.2,2683.9,0.8024]
[1727552356164,0.7697,2684.3,2683.9,0.8024]
[1727552356322,3.72533,2684.4,2683.9,4.52831]
[1727552356523,4.51383026,2684.4,2683.9,4.52831]
[1727552359276,8.23913026,2684.4,2683.9,4.52831]
[1727552360774,4.51380026,2684.4,2683.9,0.8024]
[1727552360965,0.72384544,2684.3,2683.9,0.8024]
[1727552361482,3.72565,2684.1,2683.7,4.49629]
[1727552361652,4.62616054,2684.1,2683.7,4.49629]
[1727552361974,3.72565,2684.1,2683.7,4.49629]
[1727552363140,8.28119,2684.2,2683.7,4.49629]
[1727552363843,4.55561,2684.2,2683.7,4.49629]
[1727552364068,8.28123,2684.2,2683.7,4.49629]
[1727552364476,3.72571,2684.1,2683.7,0.7701]
[1727552365531,3.72583,2684.0,2683.7,0.7701]
[1727552366197,3.72616,2683.8,2683.4,0.7701]
[1727552366397,7.45229,2683.8,2683.4,0.7701]
[1727552366689,3.72627,2683.7,2683.4,0.7701]
[1727552367069,5.68371192,2683.8,2683.4,0.7701]
[1727552367384,3.72621,2683.7,2683.4,0.7701]
[1727552368692,3.72621,2683.7,2683.2,0.7701]
[1727552368693,5.31770029,2683.7,2683.2,0.7701]
[1727552368860,3.72648,2683.5,2683.2,0.7701]
[1727552369056,3.72648,2683.5,2683.0,0.7701]
[1727552370255,3.72648,2683.5,2683.0,4.49725]
[1727552379001,7.45303,2683.5,2683.0,4.49725]
[1727552379335,7.45303,2683.5,2683.0,0.7701]
[1727552381617,3.72648,2683.5,2683.0,0.7701]
[1727552381792,3.72661,2683.4,2683.0,1.47352688]
[1727552384099,3.72678,2683.3,2683.0,1.47352688]
[1727552384435,3.72664,2683.4,2683.0,0.7701]
[1727552388231,3.72664,2683.4,2683.0,1.3755818]
[1727552398584,3.72664,2683.4,2683.0,5.1027418]
[1727552399581,3.72664,2683.4,2683.0,1.3755818]
[1727552401974,3.72647,2683.5,2683.0,5.1027218]
[1727552405304,3.72647,2683.5,2683.0,4.3325718]
[1727552405462,3.72647,2683.5,2683.1,0.8013]
[1727552411909,5.68071743,2683.5,2683.1,0.8013]
[1727552413090,5.68613947,2683.5,2683.1,0.8013]
[1727552413787,1.95966947,2683.5,2683.3,1.55752797]
[1727552413988,1.95966947,2683.7,2683.5,0.8013]
[1727552414219,1.95966947,2683.8,2683.5,1.4098428]
[1727552415085,1.95966947,2683.8,2683.6,0.8013]
[1727552415316,1.95966947,2684.0,2683.8,4.52736]
[1727552415521,1.95966947,2684.2,2684.1,0.8013]
[1727552415883,1.95966947,2684.4,2684.1,0.8013]
[1727552416086,1.95966947,2684.3,2684.1,0.8013]
[1727552416331,5.68496947,2684.4,2684.1,0.8013]
[1727552416627,5.68477947,2684.5,2684.1,0.8013]
[1727552417225,9.40996947,2684.5,2684.1,0.8013]
[1727552417586,9.40705498,2684.5,2684.1,0.8013]
[1727552417782,3.72511,2684.5,2684.1,0.8013]
[1727552420088,8.68162498,2684.7,2684.1,4.52686]
[1727552420285,3.72487,2684.7,2684.3,0.818]
[1727552420710,5.68136498,2684.9,2684.7,0.818]
[1727552420865,9.40547498,2685.1,2684.7,0.818]
[1727552421013,3.7244,2685.0,2684.7,0.818]
[1727552421426,3.72453,2684.9,2684.7,0.818]
[1727552431976,3.72453,2684.9,2684.8,0.03898184]
[1727552434844,3.7244,2685.0,2684.8,0.03898184]
[1727552435978,3.72453,2684.9,2684.8,0.03898184]
[1727552456630,3.72473,2684.8,2684.5,0.8154]
[1727552458597,3.72481,2684.7,2684.5,0.8154]
[1727552459407,3.72481,2684.7,2684.2,3.72542]
[1727552459408,3.72481,2684.7,2684.3,0.8056]
[1727552460242,3.72481,2684.7,2684.4,0.00427556]
[1727552464709,7.44975,2684.7,2684.4,0.00427556]
[1727552464909,3.72481,2684.7,2684.4,0.00427556]
[1727552465511,5.68328045,2684.7,2684.4,0.00427556]
[1727552469357,5.68328045,2684.7,2684.5,0.03425019]
[1727552469358,5.68415236,2684.7,2684.5,0.03425019]
[1727552469725,5.68415236,2684.7,2684.6,0.00422005]
[1727552469926,5.68415236,2684.7,2684.3,0.8056]
[1727552473328,5.68415236,2684.7,2684.4,0.00427556]
[1727552473569,5.68415236,2684.7,2684.4,0.038498]
[1727552473949,9.40907236,2684.7,2684.4,0.038498]
[1727552474138,5.68415236,2684.7,2684.4,0.038498]
[1727552474339,5.68421725,2684.7,2684.4,0.038498]
[1727552479442,1.95940725,2684.7,2684.4,0.038498]
[1727552479645,1.95940725,2684.7,2684.5,0.8135]
[1727552479960,1.95940725,2684.7,2684.5,4.57707589]
[1727552481876,1.95940725,2684.7,2684.5,0.85206589]
[1727552482579,1.95940725,2684.7,2684.5,4.57713589]
[1727552483955,1.95943212,2684.7,2684.5,4.57713589]
[1727552488766,1.95942684,2684.7,2684.5,4.57713589]
[1727552489498,1.95942684,2684.7,2684.5,0.85206589]
[1727552492677,1.95942684,2684.7,2684.5,5.03478448]
[1727552492878,1.95942684,2684.8,2684.5,5.03478448]
[1727552493134,1.95942684,2684.8,2684.7,1.55752797]
[1727552493314,1.95942684,2685.1,2684.9,4.54653]
[1727552493521,7.27,2685.3,2685.0,0.454653]
[1727552493821,9.22902626,2685.3,2685.0,0.454653]
[1727552494018,9.22902626,2685.3,2684.9,4.54653]
[1727552494314,1.95902626,2685.2,2684.9,4.54653]
[1727552494614,9.22902626,2685.3,2684.9,4.54653]
[1727552495278,9.22902626,2685.3,2684.9,5.53325969]
[1727552497018,1.95902626,2685.3,2684.9,5.53325969]
[1727552497228,1.95902626,2685.3,2685.0,0.00410907]
[1727552498418,5.68005497,2685.4,2685.0,0.00410907]
[1727552498822,9.40400497,2685.4,2685.0,0.00410907]
[1727552499119,9.40398497,2685.4,2685.1,0.03411961]
[1727552499512,5.68005497,2685.4,2685.1,0.03411961]
[1727552500725,9.40399497,2685.4,2685.2,0.00405358]
[1727552501225,5.68005497,2685.4,2685.2,0.00405358]
[1727552502018,9.40398497,2685.4,2685.2,0.00405358]
[1727552502594,7.44784,2685.4,2685.2,0.00405358]
[1727552502795,9.40398497,2685.4,2685.2,0.00405358]
[1727552503229,9.4029095,2685.4,2685.2,0.00405358]
[1727552504089,5.6789795,2685.4,2685.2,0.00405358]
[1727552504629,3.72391,2685.4,2685.2,0.00405358]
[1727552505133,7.44783,2685.4,2685.2,0.00405358]
[1727552505613,3.72397,2685.3,2685.2,0.00405358]
[1727552510207,3.72397,2685.3,2684.9,0.822]
[1727552510411,3.72397,2685.3,2685.2,0.03772569]
[1727552510707,3.72397,2685.3,2684.9,0.822]
[1727552510909,3.72397,2685.3,2685.2,0.03772569]
[1727552511112,3.72397,2685.3,2684.9,0.822]
[1727552511328,3.72397,2685.3,2685.2,0.03772569]
[1727552511635,3.72397,2685.3,2684.9,1.8048858]
[1727552511993,3.72397,2685.3,2685.2,0.03772569]
[1727552512403,3.72397,2685.3,2684.9,1.8048858]
[1727552512837,3.72397,2685.3,2685.0,0.0377257]
[1727552513724,3.72389,2685.4,2685.0,0.0377257]
[1727552513921,3.72389,2685.4,2685.1,0.7609]
[1727552514133,3.72389,2685.4,2685.1,0.79862569]
[1727552514900,5.67790571,2685.5,2685.1,0.79862569]
[1727552515240,3.72371,2685.5,2685.1,0.79862569]
[1727552515445,3.72371,2685.5,2685.1,1.87741464]
[1727552516234,7.44749,2685.5,2685.1,1.87741464]
[1727552516449,3.72384,2685.4,2685.1,1.87741464]
[1727552517097,3.72384,2685.4,2685.1,0.79862569]
[1727552520013,3.72405,2685.3,2685.1,0.03772569]
[1727552520224,3.72411,2685.2,2685.1,0.03772569]
[1727552521104,4.51895,2685.3,2685.1,0.03772569]
[1727552521444,8.24303,2685.3,2684.8,0.8237]
[1727552521743,4.51895,2685.3,2685.2,0.0374542]
[1727552522181,4.51895,2685.3,2684.8,4.54835]
[1727552522525,4.51895,2685.3,2684.9,0.03745421]
[1727552526455,4.51895,2685.3,2684.9,3.7578374]
[1727552526659,4.51895,2685.3,2684.9,3.72452]
[1727552526830,4.51895,2685.3,2685.0,0.03745421]
[1727552527435,0.7949,2685.3,2685.0,0.03745421]
[1727552532044,0.7949,2685.3,2685.0,3.76183421]
[1727552533142,1.95532208,2685.4,2685.0,3.76183421]
[1727552533385,1.95532208,2685.4,2685.0,4.59283263]
[1727552535966,1.95532208,2685.3,2685.0,4.59283263]
[1727552536169,1.95532208,2685.3,2685.0,3.76183421]
[1727552536370,1.95532208,2685.4,2685.0,3.76183421]
[1727552536835,1.95532208,2685.3,2685.0,3.76183421]
[1727552538657,6.8650765,2685.5,2685.0,3.76183421]
[1727552538658,1.95532208,2685.2,2685.0,3.76183421]
[1727552540238,1.95532208,2685.2,2685.0,0.03745421]
[1727552540455,1.95532208,2685.2,2685.0,3.76184421]
[1727552540769,1.95866009,2685.2,2685.0,3.76184421]
[1727552540973,1.95866009,2685.2,2685.0,0.03745421]
[1727552541569,2.72296009,2685.2,2685.0,0.03745421]
[1727552541772,1.95866009,2685.1,2685.0,0.03745421]
[1727552544146,2.72296009,2685.2,2685.0,0.03745421]
[1727552544443,1.95866009,2685.1,2685.0,0.03745421]
[1727552545544,1.95858561,2685.1,2685.0,0.03745421]
[1727552545736,6.44700561,2685.2,2685.0,0.03745421]
[1727552546378,1.95858561,2685.1,2685.0,0.03745421]
[1727552550287,1.9584541,2685.1,2685.0,0.03745421]
[1727552550581,6.4468741,2685.2,2685.0,0.03745421]
[1727552551151,1.9584541,2685.1,2685.0,0.03745421]
[1727552551469,2.7227541,2685.2,2685.0,0.03745421]
[1727552551666,1.9584541,2685.1,2685.0,0.03745421]
[1727552552992,2.7227541,2685.2,2685.0,0.03745421]
[1727552554075,1.9584541,2685.2,2685.0,0.03745421]
[1727552555285,1.95832235,2685.2,2685.0,0.03745421]
[1727552557598,6.56718427,2685.2,2685.0,0.03745421]
[1727552557764,5.68257235,2685.1,2685.0,0.03745421]
[1727552558094,4.53935,2685.1,2685.0,0.03745421]
[1727552558264,7.53935,2685.1,2685.0,0.03745421]
[1727552558464,9.88933682,2685.1,2685.0,0.03745421]
[1727552558665,0.8151,2684.7,2684.2,4.54769]
[1727552558897,4.53992,2684.7,2684.2,8.2731]
[1727552559194,4.53992,2684.7,2684.3,0.03635661]
[1727552562916,4.53992,2684.7,2684.3,3.76171661]
[1727552565299,4.53992,2684.7,2684.3,0.03635661]
[1727552568824,4.53992,2684.7,2684.3,3.76170661]
[1727552570629,4.53992,2684.7,2684.3,0.03635661]
[1727552570974,3.72496,2684.6,2684.3,0.03635661]
[1727552572827,0.7837,2684.6,2684.3,0.03635661]
[1727552572995,3.7251,2684.5,2684.3,0.03635661]
[1727552573200,4.50892,2684.4,2684.3,0.03635661]
[1727552573925,4.50892,2684.4,2683.8,4.55324]
[1727552574095,4.50892,2684.4,2684.3,0.03705244]
[1727552575229,4.50892,2684.4,2683.9,3.7259]
[1727552575636,4.50892,2684.4,2684.0,0.03718824]
[1727552580732,0.7837,2684.4,2684.0,0.03718824]
[1727552580920,0.7837,2684.4,2684.0,3.76293824]
[1727552586843,4.50898,2684.4,2684.0,0.03718824]
[1727552589846,4.50898,2684.4,2684.0,3.76296824]
[1727552590049,0.7837,2684.4,2684.0,3.76296824]
[1727552591516,0.7837,2684.4,2684.0,0.03718824]
[1727552593251,3.72552,2684.2,2684.0,0.03718824]
[1727552593550,4.52934,2684.1,2684.0,0.03718824]
[1727552593956,6.08686797,2684.1,2684.0,0.03718824]
[1727552594614,3.72608,2683.8,2683.3,4.50274]
[1727552595044,3.72608,2683.8,2683.4,0.03649151]
[1727552595233,8.25542,2684.0,2683.4,3.76307151]
[1727552595434,8.8641258,2684.0,2683.4,3.76307151]
[1727552598330,8.8641258,2684.0,2683.4,3.72658]
[1727552598530,8.8641258,2684.0,2683.5,0.03649151]
[1727552599663,5.1382358,2684.0,2683.5,0.03649151]
[1727552600572,8.8641058,2684.0,2683.6,0.03694154]
[1727552600739,8.2554,2684.0,2683.4,3.72658]
[1727552600974,8.2554,2684.0,2683.5,0.03694154]
[1727552602454,8.25542,2684.0,2683.5,0.03694154]
[1727552604429,4.52953,2684.0,2683.5,0.03694154]
[1727552604943,4.52953,2684.0,2683.4,3.72658]
[1727552605149,4.52953,2684.0,2683.4,0.822932]
[1727552605351,3.72593,2683.9,2683.4,4.549522]
[1727552605549,4.52953,2684.0,2683.5,0.03694154]
[1727552605729,8.25544,2684.0,2683.5,0.03694154]
[1727552608161,8.25539,2684.0,2683.5,0.03694154]
[1727552610360,4.52953,2684.0,2683.5,0.03694154]
[1727552611049,8.2554,2684.0,2683.5,0.03694154]
[1727552612379,4.52953,2684.0,2683.5,0.03694154]
[1727552612674,8.2554,2684.0,2683.6,0.8291]
[1727552613175,8.2554,2684.0,2683.7,0.03692454]
[1727552614174,4.52953,2684.0,2683.7,0.03692454]
[1727552614475,8.25542,2684.0,2683.6,0.8291]
[1727552614848,8.25542,2684.0,2683.7,0.03692454]
[1727552615065,4.52953,2684.0,2683.7,0.03692454]
[1727552616374,3.72601,2683.9,2683.7,0.03692454]
[1727552616546,3.72601,2683.9,2683.6,0.8291]
[1727552616735,3.72601,2683.9,2683.8,0.03692454]
[1727552616940,3.72601,2683.9,2683.6,0.8291]
[1727552617147,3.72601,2683.9,2683.8,0.03692454]
[1727552617372,3.72601,2683.9,2683.6,0.8291]
[1727552617684,3.72601,2683.9,2683.8,0.03692454]
[1727552617842,3.72601,2683.9,2683.4,0.8291]
[1727552618040,3.72601,2683.9,2683.8,0.03692454]
[1727552618352,4.9028642,2683.9,2683.8,0.03692454]
[1727552618556,4.9028642,2683.9,2683.4,0.8291]
[1727552618738,3.72601,2683.9,2683.8,0.03692454]
[1727552618938,3.72601,2683.9,2683.4,4.5557]
[1727552619158,3.72601,2683.9,2683.8,0.03692454]
[1727552619476,3.72601,2683.9,2683.4,4.5557]
[1727552619664,3.72601,2683.9,2683.8,0.03692454]
[1727552619869,4.9028642,2683.9,2683.4,4.5557]
[1727552620180,4.52953,2684.0,2683.4,0.8291]
[1727552620384,3.72606,2683.8,2683.5,0.03692454]
[1727552622571,3.72633,2683.6,2683.5,0.03692454]
[1727552622757,3.72633,2683.6,2683.1,4.52112]
[1727552622957,3.72633,2683.6,2683.5,0.03732365]
[1727552623158,4.89829416,2683.6,2683.1,4.52112]
[1727552623360,4.89829416,2683.6,2683.5,0.03732365]
[1727552623596,4.89829416,2683.6,2683.1,8.24804]
[1727552623888,4.89829416,2683.6,2683.5,0.03732365]
[1727552624093,4.89829416,2683.6,2683.1,4.52102]
[1727552624255,3.72633,2683.6,2683.5,0.03732365]
[1727552624456,3.72633,2683.6,2683.1,8.24797]
[1727552624655,3.72633,2683.6,2683.5,0.03732365]
[1727552624868,3.72633,2683.6,2683.1,4.52102]
[1727552625070,3.72633,2683.6,2683.5,0.03732365]
[1727552625285,3.72633,2683.6,2683.1,4.52102]
[1727552625486,3.72633,2683.6,2683.5,0.03732365]
[1727552625794,4.89829416,2683.6,2683.5,0.03732365]
[1727552626005,4.89829416,2683.6,2683.1,8.24796]
[1727552626296,3.72633,2683.6,2683.5,0.03732365]
[1727552626451,3.72633,2683.6,2683.1,4.52102]
[1727552626657,3.72633,2683.6,2683.5,0.03732365]
[1727552626898,4.89829416,2683.6,2683.1,4.52102]
[1727552627196,3.72633,2683.6,2683.1,4.52102]
[1727552627410,3.72633,2683.6,2683.2,0.03732365]
[1727552637443,3.7267,2683.4,2683.2,0.03732365]
[1727552637648,3.72675,2683.3,2683.2,0.03732365]
[1727552637806,4.89880382,2683.3,2682.9,0.7941]
[1727552638002,3.72675,2683.3,2683.2,0.03780777]
[1727552638204,3.72675,2683.3,2682.9,0.7941]
[1727552638403,3.72675,2683.3,2683.2,0.03780777]
[1727552638734,3.72675,2683.3,2682.9,0.7941]
[1727552639338,3.72675,2683.3,2683.0,0.03780777]
[1727552640219,4.89880382,2683.3,2683.0,0.03780777]
[1727552640898,3.7269,2683.2,2682.8,3.72743]
[1727552641104,3.7269,2683.2,2683.1,0.03780777]
[1727552641304,3.7269,2683.2,2682.8,3.72743]
[1727552641544,3.7269,2683.2,2683.1,0.03780777]
[1727552641704,4.4802,2683.4,2682.8,3.72743]
[1727552641910,3.72675,2683.3,2683.1,0.03780777]
[1727552642215,3.72675,2683.3,2683.2,0.03780777]
[1727552642434,3.72675,2683.3,2682.8,3.72743]
[1727552642755,3.72675,2683.3,2683.2,0.03809662]
[1727552642940,3.72675,2683.3,2682.8,3.72743]
[1727552643256,3.72675,2683.3,2682.9,0.03809662]
[1727552643560,3.72675,2683.3,2682.7,1.3839938]
[1727552643867,3.7269,2683.2,2683.0,0.03809662]
[1727552644061,3.7269,2683.2,2682.7,5.1115638]
[1727552644256,3.7269,2683.2,2683.1,0.03805414]
[1727552644462,3.7269,2683.2,2682.7,5.1115638]
[1727552644634,3.7269,2683.2,2683.1,0.03805414]
[1727552644964,3.7269,2683.2,2682.7,5.1115638]
[1727552645124,3.7269,2683.2,2683.1,0.03805414]
[1727552645526,3.7269,2683.2,2682.7,5.1115638]
[1727552645732,3.7269,2683.2,2683.1,0.03805414]
[1727552645940,3.7269,2683.2,2682.7,5.1115638]
[1727552645941,3.7269,2683.2,2682.7,4.50527]
[1727552646142,3.7269,2683.2,2682.8,0.03805414]
[1727552646364,3.7269,2683.2,2682.7,5.4843208]
[1727552646662,3.7269,2683.2,2682.9,0.03805414]
[1727552646843,3.7269,2683.2,2682.7,5.4843208]
[1727552647157,3.7269,2683.2,2683.0,0.03805414]
[1727552647373,3.7269,2683.2,2683.1,0.03805414]
[1727552647541,3.7269,2683.2,2682.7,5.4843208]
[1727552647746,3.7269,2683.2,2682.8,0.03805414]
[1727552647932,3.7269,2683.2,2682.7,5.4843208]
[1727552648129,3.7269,2683.2,2682.8,0.03805414]
[1727552648434,3.7269,2683.2,2682.7,5.4843208]
[1727552648933,3.7269,2683.2,2682.8,0.03836847]
[1727552649134,3.7269,2683.2,2682.7,5.4843208]
[1727552649330,3.7269,2683.2,2682.8,0.03836847]
[1727552649666,3.7269,2683.2,2682.7,1.7567508]
[1727552649881,7.45387,2683.2,2682.9,0.03836847]
[1727552650088,7.45387,2683.2,2682.7,1.7567508]
[1727552650252,7.45387,2683.2,2683.0,0.03836847]
[1727552650453,3.7269,2683.2,2682.7,0.7777]
[1727552650761,3.7269,2683.2,2682.7,1.85466188]
[1727552650969,7.45387,2683.2,2682.8,0.03836847]
[1727552651286,7.45387,2683.2,2682.7,1.85466188]
[1727552651444,7.45387,2683.2,2682.9,0.03836847]
[1727552651647,7.45387,2683.2,2682.7,1.85466188]
[1727552651876,7.45387,2683.2,2683.0,0.03836847]
[1727552652079,7.45387,2683.2,2682.7,0.7777]
[1727552652265,7.45387,2683.2,2683.1,0.03836847]
[1727552652452,7.45387,2683.2,2682.7,0.7777]
[1727552652652,7.45387,2683.2,2683.1,0.03836847]
[1727552652857,7.45387,2683.2,2682.7,0.7777]
[1727552653057,7.45387,2683.2,2683.1,0.03836847]
[1727552653260,7.45387,2683.2,2682.7,0.7777]